bitfinex/quotes_BTCUSD_20250129
["timestamp","ask_amount","ask_price","bid_price","bid_amount"]
[1738174081366,9e-07,102390.0,102380.0,1.26494715]
[1738174081764,9e-07,102390.0,102380.0,1.23470374]
[1738174082548,9e-07,102390.0,102380.0,1.14910374]
[1738174082752,9e-07,102390.0,102380.0,1.14873009]
[1738174082960,9e-07,102390.0,102380.0,1.14910374]
[1738174083159,9e-07,102390.0,102380.0,1.14873009]
[1738174083365,9e-07,102390.0,102380.0,1.14610374]
[1738174083799,9e-07,102390.0,102380.0,1.14910374]
[1738174083991,9e-07,102390.0,102380.0,1.14873009]
[1738174084189,9e-07,102390.0,102380.0,1.13470374]
[1738174084393,9e-07,102390.0,102380.0,0.75816058]
[1738174084829,9e-07,102390.0,102380.0,0.75516058]
[1738174085926,9e-07,102390.0,102380.0,0.63570375]
[1738174086274,9e-07,102390.0,102380.0,0.73770375]
[1738174089138,9e-07,102390.0,102380.0,0.83508911]
[1738174089347,0.00029952,102390.0,102380.0,0.83508911]
[1738174093023,0.00029952,102390.0,102380.0,0.85484952]
[1738174094797,0.00029952,102390.0,102380.0,1.00484952]
[1738174100221,0.00029952,102390.0,102380.0,1.25334952]
[1738174100691,0.00029952,102390.0,102380.0,1.28362389]
[1738174101097,0.00029952,102390.0,102380.0,1.25334952]
[1738174101301,0.00029952,102390.0,102380.0,1.38677663]
[1738174101947,0.00029952,102390.0,102380.0,1.36377663]
[1738174102152,0.00029952,102390.0,102380.0,1.26377663]
[1738174103539,0.00029952,102390.0,102380.0,1.23346952]
[1738174103743,0.00029952,102390.0,102380.0,1.26382802]
[1738174103942,0.00029952,102390.0,102380.0,1.26345437]
[1738174104145,0.00029952,102390.0,102380.0,1.26382802]
[1738174105666,5.2e-07,102390.0,102380.0,1.38682802]
[1738174106066,5.2e-07,102390.0,102380.0,1.41682802]
[1738174106486,5.2e-07,102390.0,102380.0,1.36382802]
[1738174106902,5.2e-07,102390.0,102380.0,1.36182802]
[1738174107096,5.2e-07,102390.0,102380.0,1.27542802]
[1738174107317,5.2e-07,102390.0,102380.0,1.24869587]
[1738174107461,5.2e-07,102390.0,102380.0,0.85660595]
[1738174107701,5.2e-07,102390.0,102380.0,0.85260595]
[1738174108106,5.2e-07,102390.0,102380.0,0.85560595]
[1738174108305,5.2e-07,102390.0,102380.0,0.59545395]
[1738174108721,0.20711082,102390.0,102380.0,0.5950803]
[1738174108947,0.35360882,102390.0,102380.0,0.5950803]
[1738174109282,0.62860882,102390.0,102380.0,0.4889603]
[1738174109513,0.77147596,102390.0,102380.0,0.4889603]
[1738174109714,0.66160882,102390.0,102380.0,0.4899603]
[1738174110343,0.033,102380.0,102360.0,0.08693046]
[1738174110555,0.51125854,102370.0,102360.0,0.08693046]
[1738174110758,0.6600373,102370.0,102360.0,0.08693046]
[1738174112065,0.195417,102350.0,102320.0,0.4686693]
[1738174112277,0.7445133,102350.0,102330.0,0.00014477]
[1738174112480,0.43922716,102350.0,102330.0,0.14710242]
[1738174112903,0.24724316,102350.0,102330.0,0.34254642]
[1738174113106,0.24724316,102350.0,102340.0,0.14657]
[1738174113307,0.24724316,102350.0,102330.0,0.44254642]
[1738174113513,0.24724316,102350.0,102330.0,0.24710242]
[1738174113514,0.39380016,102350.0,102330.0,0.24710242]
[1738174113719,0.58920916,102350.0,102330.0,0.10051842]
[1738174113937,0.58920916,102350.0,102330.0,0.00051842]
[1738174114081,0.58920916,102350.0,102340.0,0.00035131]
[1738174114293,0.39380016,102350.0,102340.0,0.00035131]
[1738174114702,0.24724316,102350.0,102340.0,0.14692131]
[1738174114898,0.43827381,102370.0,102340.0,0.00072496]
[1738174115098,0.24378716,102360.0,102340.0,0.14728796]
[1738174115323,0.24724316,102360.0,102340.0,0.34271396]
[1738174115518,0.39378916,102360.0,102340.0,0.14728796]
[1738174115736,0.39378916,102360.0,102340.0,0.34271396]
[1738174115936,0.24724316,102360.0,102340.0,0.34271396]
[1738174116323,0.24724316,102360.0,102340.0,0.34270096]
[1738174116551,0.24724316,102360.0,102340.0,0.53911796]
[1738174116723,0.39378816,102360.0,102340.0,0.00172496]
[1738174116925,0.40764334,102350.0,102340.0,0.00135131]
[1738174117127,0.5036653,102350.0,102340.0,0.00035131]
[1738174117531,0.09724316,102350.0,102340.0,0.00135131]
[1738174117775,0.24379816,102350.0,102340.0,0.00135131]
[1738174118201,0.3536653,102350.0,102340.0,0.00135131]
[1738174118356,0.24379816,102350.0,102340.0,0.00135131]
[1738174118916,0.3536653,102350.0,102340.0,0.00035131]
[1738174119255,0.24379816,102350.0,102340.0,0.00035131]
[1738174119660,0.10024316,102350.0,102340.0,0.00035131]
[1738174119858,0.24679816,102350.0,102340.0,0.00035131]
[1738174120123,0.24379816,102350.0,102340.0,0.00035131]
[1738174120539,0.24579816,102350.0,102340.0,0.00035131]
[1738174120974,0.3556653,102350.0,102340.0,0.00035131]
[1738174121809,0.3536653,102350.0,102340.0,0.00035131]
[1738174122021,0.5066653,102350.0,102340.0,0.00035131]
[1738174122668,0.25024316,102350.0,102340.0,0.00035131]
[1738174123085,0.003,102350.0,102340.0,0.14729496]
[1738174123987,0.003,102350.0,102340.0,0.00072496]
[1738174124188,0.003,102350.0,102340.0,0.14729496]
[1738174124882,0.60179714,102360.0,102340.0,0.14729496]
[1738174125088,0.3536653,102350.0,102340.0,0.00035131]
[1738174125333,0.5056653,102350.0,102340.0,0.00049351]
[1738174125755,0.5036653,102350.0,102340.0,0.00049351]
[1738174126831,0.5066653,102350.0,102340.0,0.00049351]
[1738174127047,0.25024316,102350.0,102340.0,0.00049351]
[1738174127253,0.10024316,102350.0,102340.0,0.14706351]
[1738174127471,0.003,102350.0,102340.0,0.24743716]
[1738174127933,0.003,102350.0,102340.0,0.29513716]
[1738174128136,0.00091597,102350.0,102340.0,1.48764532]
[1738174128351,0.08705139,102380.0,102370.0,0.37470065]
[1738174128770,0.08705139,102380.0,102370.0,0.37504831]
[1738174129190,5.2e-07,102390.0,102380.0,0.24688565]
[1738174129609,5.2e-07,102390.0,102380.0,0.24721423]
[1738174131349,5.2e-07,102390.0,102380.0,0.26053423]
[1738174131562,0.00200052,102390.0,102380.0,0.26053423]
[1738174132214,5.2e-07,102390.0,102380.0,0.26053423]
[1738174132416,5.2e-07,102390.0,102380.0,0.26253423]
[1738174132851,5.2e-07,102390.0,102380.0,0.24921423]
[1738174133076,5.2e-07,102390.0,102380.0,0.26253423]
[1738174134541,5.2e-07,102390.0,102380.0,0.26053423]
[1738174134723,5.2e-07,102390.0,102380.0,0.26153423]
[1738174134940,5.2e-07,102390.0,102380.0,0.14821423]
[1738174135065,5.2e-07,102390.0,102380.0,0.24821423]
[1738174137703,5.2e-07,102390.0,102380.0,0.34545739]
[1738174138873,5.2e-07,102390.0,102380.0,0.73656423]
[1738174140470,5.2e-07,102390.0,102380.0,0.83380739]
[1738174141363,5.2e-07,102390.0,102380.0,0.83408213]
[1738174142301,5.2e-07,102390.0,102380.0,1.06138213]
[1738174142504,5.2e-07,102390.0,102380.0,1.20688213]
[1738174142712,5.2e-07,102390.0,102380.0,1.22988213]
[1738174143547,5.2e-07,102390.0,102380.0,1.22888213]
[1738174143752,2.1e-07,102410.0,102400.0,0.64695765]
[1738174143958,8.2e-07,102410.0,102400.0,1.23248081]
[1738174144165,8.2e-07,102410.0,102400.0,1.23302116]
[1738174144363,8.2e-07,102410.0,102400.0,1.26302116]
[1738174144576,8.2e-07,102410.0,102400.0,1.25302116]
[1738174144907,8.2e-07,102410.0,102400.0,1.26302116]
[1738174145129,8.2e-07,102410.0,102400.0,1.25302116]
[1738174145359,8.2e-07,102410.0,102400.0,1.26302116]
[1738174145967,8.2e-07,102410.0,102400.0,1.2827427]
[1738174146920,8.2e-07,102410.0,102400.0,1.28535578]
[1738174147354,8.2e-07,102410.0,102400.0,1.28235578]
[1738174147782,8.2e-07,102410.0,102400.0,1.26598213]
[1738174147936,8.2e-07,102410.0,102400.0,1.28598213]
[1738174148136,8.2e-07,102410.0,102400.0,1.28635578]
[1738174148557,8.2e-07,102410.0,102400.0,1.27927578]
[1738174148933,0.00029965,102410.0,102400.0,1.27927578]
[1738174149130,0.00029965,102410.0,102400.0,1.71426278]
[1738174149330,0.00029965,102410.0,102400.0,1.65858278]
[1738174149539,0.00029965,102410.0,102400.0,1.65458278]
[1738174150269,0.00029965,102410.0,102400.0,1.65758278]
[1738174150452,0.00029965,102410.0,102400.0,1.27827578]
[1738174151742,0.00029965,102410.0,102400.0,1.17790213]
[1738174151939,0.00029965,102410.0,102400.0,1.24543578]
[1738174152350,0.00029965,102410.0,102400.0,1.10823578]
[1738174152946,0.00029965,102410.0,102400.0,1.25523578]
[1738174153368,0.00029965,102410.0,102400.0,1.35723578]
[1738174153781,0.00029965,102410.0,102400.0,1.003518]
[1738174153981,0.00029965,102410.0,102400.0,1.10076116]
[1738174154206,0.00029965,102410.0,102400.0,1.17896116]
[1738174154422,0.00029965,102410.0,102400.0,1.34756116]
[1738174154623,0.00029965,102410.0,102400.0,1.94126316]
[1738174155232,0.00029965,102410.0,102400.0,1.96126316]
[1738174155760,6.5e-07,102410.0,102400.0,1.96126316]
[1738174156085,6.5e-07,102410.0,102400.0,1.36756116]
[1738174156621,6.5e-07,102410.0,102400.0,1.28691115]
[1738174157169,6.5e-07,102410.0,102400.0,1.38691115]
[1738174159536,6.5e-07,102410.0,102400.0,1.2665375]
[1738174159729,6.5e-07,102410.0,102400.0,1.3665375]
[1738174159942,6.5e-07,102410.0,102400.0,1.38691115]
[1738174160145,6.5e-07,102410.0,102400.0,1.3665375]
[1738174160353,6.5e-07,102410.0,102400.0,1.38691115]
[1738174160677,6.5e-07,102410.0,102400.0,1.3665375]
[1738174161115,6.5e-07,102410.0,102400.0,1.3435375]
[1738174161298,6.5e-07,102410.0,102400.0,1.19375115]
[1738174161515,6.5e-07,102410.0,102400.0,1.36675115]
[1738174162279,6.5e-07,102410.0,102400.0,1.34375115]
[1738174162608,6.5e-07,102410.0,102400.0,1.36675115]
[1738174162854,6.5e-07,102410.0,102400.0,1.24375115]
[1738174163341,6.5e-07,102410.0,102400.0,1.2433775]
[1738174164347,6.5e-07,102410.0,102400.0,1.3433775]
[1738174164754,6.5e-07,102410.0,102400.0,1.34375115]
[1738174164962,6.5e-07,102410.0,102400.0,1.3433775]
[1738174165170,6.5e-07,102410.0,102400.0,1.1651775]
[1738174165378,6.5e-07,102410.0,102400.0,1.16555115]
[1738174165577,6.5e-07,102410.0,102400.0,1.26555115]
[1738174165778,6.5e-07,102410.0,102400.0,1.2651775]
[1738174166028,6.5e-07,102410.0,102400.0,1.26555115]
[1738174166846,6.5e-07,102410.0,102400.0,1.2651775]
[1738174167446,6.5e-07,102410.0,102400.0,1.26555115]
[1738174167817,6.5e-07,102410.0,102400.0,1.28855115]
[1738174168013,6.5e-07,102410.0,102400.0,1.31882441]
[1738174169452,6.5e-07,102410.0,102400.0,1.39722441]
[1738174169654,6.5e-07,102410.0,102400.0,1.41722441]
[1738174171135,6.5e-07,102410.0,102400.0,1.39685076]
[1738174171415,6.5e-07,102410.0,102400.0,1.41736661]
[1738174173375,6.5e-07,102410.0,102400.0,1.52046661]
[1738174173588,6.5e-07,102410.0,102400.0,1.41716661]
[1738174175321,6.5e-07,102410.0,102400.0,1.39679296]
[1738174175510,6.5e-07,102410.0,102400.0,1.41716661]
[1738174176259,6.5e-07,102410.0,102400.0,1.39716661]
[1738174177510,6.5e-07,102410.0,102400.0,1.41716661]
[1738174177956,6.5e-07,102410.0,102400.0,1.39716661]
[1738174178969,6.5e-07,102410.0,102400.0,1.41716661]
[1738174180612,6.5e-07,102410.0,102400.0,1.42716661]
[1738174181277,6.5e-07,102410.0,102400.0,1.39679296]
[1738174181493,6.5e-07,102410.0,102400.0,1.36176661]
[1738174181703,6.5e-07,102410.0,102400.0,0.99984661]
[1738174181990,6.5e-07,102410.0,102400.0,0.99992661]
[1738174182191,6.5e-07,102410.0,102400.0,1.05268345]
[1738174182399,6.5e-07,102410.0,102400.0,0.89052345]
[1738174182600,6.5e-07,102410.0,102400.0,0.87045019]
[1738174182803,6.5e-07,102410.0,102400.0,0.96769335]
[1738174183007,6.5e-07,102410.0,102400.0,1.14908434]
[1738174183424,6.5e-07,102410.0,102400.0,1.11869335]
[1738174183682,6.5e-07,102410.0,102400.0,1.14907257]
[1738174184876,6.5e-07,102410.0,102400.0,1.35187257]
[1738174186235,6.5e-07,102410.0,102400.0,1.27207257]
[1738174186440,6.5e-07,102410.0,102400.0,1.24907257]
[1738174186649,6.5e-07,102410.0,102400.0,0.99907257]
[1738174186855,6.5e-07,102410.0,102400.0,1.13687257]
[1738174187058,6.5e-07,102410.0,102400.0,1.14895257]
[1738174187262,6.5e-07,102410.0,102400.0,1.11857335]
[1738174187708,6.5e-07,102410.0,102400.0,1.02133019]
[1738174191570,6.5e-07,102410.0,102400.0,1.0018202]
[1738174194189,6.5e-07,102410.0,102400.0,0.8868202]
[1738174194388,6.5e-07,102410.0,102400.0,0.8987002]
[1738174195064,6.5e-07,102410.0,102400.0,0.74832655]
[1738174195469,6.5e-07,102410.0,102400.0,0.7487002]
[1738174195845,6.5e-07,102410.0,102400.0,0.7368202]
[1738174196161,6.5e-07,102410.0,102400.0,0.7487002]
[1738174197532,6.5e-07,102410.0,102400.0,0.84594336]
[1738174197784,6.5e-07,102410.0,102400.0,1.09594336]
[1738174198207,6.5e-07,102410.0,102400.0,1.08368971]
[1738174198407,6.5e-07,102410.0,102400.0,0.74824655]
[1738174198809,6.5e-07,102410.0,102400.0,0.7486202]
[1738174199015,6.5e-07,102410.0,102400.0,0.74824655]
[1738174200674,6.5e-07,102410.0,102400.0,0.64820655]
[1738174201114,6.5e-07,102410.0,102400.0,0.6485802]
[1738174201336,6.5e-07,102410.0,102400.0,0.7485802]
[1738174201656,6.5e-07,102410.0,102400.0,0.7358202]
[1738174201862,6.5e-07,102410.0,102400.0,0.7476202]
[1738174202094,6.5e-07,102410.0,102400.0,0.84486336]
[1738174204226,6.5e-07,102410.0,102400.0,0.84586336]
[1738174205386,6.5e-07,102410.0,102400.0,0.7368202]
[1738174205588,6.5e-07,102410.0,102400.0,0.64816655]
[1738174205778,6.5e-07,102410.0,102400.0,0.6485402]
[1738174207234,6.5e-07,102410.0,102400.0,0.6475402]
[1738174207433,0.32733443,102410.0,102400.0,0.48896255]
[1738174207690,0.47880264,102410.0,102400.0,0.48896255]
[1738174207828,0.36901381,102410.0,102400.0,0.48896255]
[1738174208194,0.47880264,102410.0,102400.0,0.48896255]
[1738174208804,0.47980264,102410.0,102400.0,0.48896255]
[1738174209759,0.22354381,102410.0,102400.0,0.63544655]
[1738174209975,0.18064381,102410.0,102400.0,0.63544655]
[1738174210182,0.32733448,102410.0,102400.0,0.48896255]
[1738174210389,0.32611381,102410.0,102400.0,0.48896255]
[1738174210631,0.43790264,102410.0,102400.0,0.48896255]
[1738174210884,0.32811381,102410.0,102400.0,0.48896255]
[1738174211052,0.18164381,102410.0,102400.0,0.63544655]
[1738174211255,0.32811381,102410.0,102400.0,0.48896255]
[1738174212300,0.18164381,102410.0,102400.0,0.63544655]
[1738174212526,0.00200065,102410.0,102400.0,0.6358202]
[1738174213387,0.00200065,102410.0,102400.0,0.83306336]
[1738174213599,0.00200065,102410.0,102400.0,1.18386336]
[1738174213868,0.00200065,102410.0,102400.0,1.26019733]
[1738174214255,6.5e-07,102410.0,102400.0,1.16019733]
[1738174214875,6.5e-07,102410.0,102400.0,1.18019733]
[1738174215091,0.00029821,102430.0,102420.0,0.246455]
[1738174215296,0.00078015,102430.0,102420.0,0.24682865]
[1738174215498,0.00078015,102430.0,102420.0,0.24735457]
[1738174216554,0.00078015,102430.0,102420.0,0.34459773]
[1738174216766,0.00078015,102430.0,102420.0,0.67059773]
[1738174216971,0.00078015,102430.0,102420.0,1.23612801]
[1738174217386,0.00078015,102430.0,102420.0,1.20578773]
[1738174217600,0.00078015,102430.0,102420.0,1.22878773]
[1738174217821,1.5e-07,102430.0,102420.0,1.25934427]
[1738174218032,1.5e-07,102430.0,102420.0,1.43534427]
[1738174218249,0.0872957,102480.0,102470.0,0.24675765]
[1738174218474,0.08738983,102480.0,102470.0,0.24675765]
[1738174218688,0.08738983,102480.0,102470.0,0.24742048]
[1738174218921,0.08738983,102480.0,102470.0,0.24763822]
[1738174220606,0.08838983,102480.0,102470.0,0.24726457]
[1738174220833,0.33200299,102480.0,102470.0,0.00088057]
[1738174221053,0.18563299,102480.0,102470.0,0.00088057]
[1738174221264,0.09863529,102480.0,102470.0,0.00088057]
[1738174221934,0.39500529,102480.0,102470.0,0.00088057]
[1738174222794,0.68800852,102480.0,102470.0,0.00088057]
[1738174223005,0.5691498,102480.0,102450.0,0.14641]
[1738174223214,0.146402,102460.0,102430.0,0.636915]
[1738174223428,0.65339383,102460.0,102430.0,0.63728765]
[1738174223612,0.44007432,102460.0,102440.0,0.146423]
[1738174223807,0.43885416,102460.0,102440.0,0.341659]
[1738174224047,0.24724316,102460.0,102440.0,0.536884]
[1738174224245,0.146412,102450.0,102430.0,0.648595]
[1738174224663,0.43887216,102450.0,102430.0,0.453362]
[1738174224872,0.43887216,102450.0,102430.0,0.45373565]
[1738174225300,0.146443,102430.0,102410.0,0.565042]
[1738174225509,0.60466906,102440.0,102410.0,0.35376765]
[1738174225715,0.63540055,102440.0,102420.0,0.146455]
[1738174226144,0.63539755,102440.0,102420.0,0.146455]
[1738174226354,0.63539455,102440.0,102420.0,0.146455]
[1738174226689,0.59014855,102440.0,102430.0,0.00089497]
[1738174226913,0.341718,102430.0,102410.0,0.146457]
[1738174227115,0.43896116,102430.0,102420.0,0.00093519]
[1738174227350,0.43896116,102430.0,102410.0,0.34212265]
[1738174227566,0.43896116,102430.0,102420.0,0.00097586]
[1738174227764,0.43720946,102430.0,102410.0,0.53741465]
[1738174227970,0.43720946,102430.0,102420.0,0.00097586]
[1738174228176,0.43920946,102430.0,102410.0,0.537031]
[1738174228387,0.43920946,102430.0,102420.0,0.00093707]
[1738174228658,0.43920946,102430.0,102410.0,0.537031]
[1738174228831,0.43920946,102430.0,102420.0,0.00095472]
[1738174229252,0.43920946,102430.0,102410.0,0.341749]
[1738174229463,0.43920946,102430.0,102420.0,0.00097586]
[1738174229687,0.58720946,102430.0,102420.0,0.00097586]
[1738174229841,0.58720946,102430.0,102410.0,0.0001422]
[1738174229842,0.146455,102420.0,102410.0,0.0001422]
[1738174230051,0.24491874,102420.0,102410.0,0.1466122]
[1738174230217,0.24369816,102420.0,102410.0,0.1466122]
[1738174230427,0.24369816,102420.0,102410.0,0.0001422]
[1738174231474,0.24469816,102420.0,102410.0,0.0001422]
[1738174231672,0.40921267,102420.0,102410.0,0.0001422]
[1738174231875,0.24469816,102420.0,102410.0,0.0001422]
[1738174232393,0.09824316,102420.0,102410.0,0.1466122]
[1738174232549,0.001,102420.0,102410.0,0.24698585]
[1738174233810,0.001,102420.0,102410.0,0.50594901]
[1738174234018,0.00029862,102430.0,102420.0,0.24682865]
[1738174236070,0.00129862,102430.0,102420.0,0.246455]
[1738174236276,0.00251892,102430.0,102420.0,0.146455]
[1738174236454,0.00129862,102430.0,102420.0,0.146455]
[1738174237558,0.00129862,102430.0,102420.0,0.24682865]
[1738174237763,0.00129862,102430.0,102420.0,0.25850865]
[1738174238818,0.00129862,102430.0,102420.0,0.158135]
[1738174239023,0.00129862,102430.0,102420.0,0.15850865]
[1738174239269,0.14896,102430.0,102420.0,0.158135]
[1738174239489,0.002519,102430.0,102420.0,0.158135]
[1738174239668,0.00251905,102430.0,102420.0,0.158135]
[1738174239878,0.14896005,102430.0,102420.0,0.158135]
[1738174240081,0.00129862,102430.0,102420.0,0.158135]
[1738174240854,0.14896005,102430.0,102420.0,0.158135]
[1738174241284,0.00251905,102430.0,102420.0,0.158135]
[1738174241798,0.14773962,102430.0,102420.0,0.158135]
[1738174242029,0.00251905,102430.0,102420.0,0.158135]
[1738174242222,0.00129862,102430.0,102420.0,0.158135]
[1738174242420,0.14773962,102430.0,102420.0,0.158135]
[1738174242646,0.80481272,102430.0,102410.0,0.1466122]
[1738174242864,0.09854178,102430.0,102420.0,0.146455]
[1738174243066,0.00129862,102430.0,102420.0,0.14682865]
[1738174243299,0.00129862,102430.0,102420.0,0.24682865]
[1738174243523,0.00029862,102430.0,102420.0,0.33002865]
[1738174245297,0.00029862,102430.0,102420.0,0.329655]
[1738174245546,0.00029862,102430.0,102420.0,0.34158865]
[1738174246343,0.00129862,102430.0,102420.0,0.34158865]
[1738174246562,0.00129862,102430.0,102420.0,0.258015]
[1738174246980,0.00129862,102430.0,102420.0,0.25838865]
[1738174247799,0.00129862,102430.0,102420.0,0.24682865]
[1738174248032,0.00129862,102430.0,102420.0,0.25846865]
[1738174248212,0.00129862,102430.0,102420.0,0.258095]
[1738174249318,0.00129862,102430.0,102420.0,0.25846865]
[1738174249502,0.00129862,102430.0,102420.0,0.246455]
[1738174249694,0.00129862,102430.0,102420.0,0.258095]
[1738174251540,0.00129862,102430.0,102420.0,0.25846865]
[1738174251674,0.00129862,102430.0,102420.0,0.258095]
[1738174252303,0.00129862,102430.0,102420.0,0.25846865]
[1738174253371,0.00129862,102430.0,102420.0,0.25861085]
[1738174253732,0.00129862,102430.0,102420.0,0.35585401]
[1738174254090,0.00129862,102430.0,102420.0,0.25861085]
[1738174254543,0.00129862,102430.0,102420.0,0.2582372]
[1738174254753,0.00251899,102430.0,102420.0,0.0001422]
[1738174255002,0.14895999,102430.0,102420.0,0.0001422]
[1738174255224,0.14773962,102430.0,102420.0,0.0001422]
[1738174255446,0.57071768,102430.0,102420.0,0.0011422]
[1738174255647,0.56949729,102430.0,102420.0,0.0011422]
[1738174256916,0.306455,102420.0,102410.0,0.0001422]
[1738174257121,0.56821267,102420.0,102410.0,0.0001422]
[1738174257332,0.40369816,102420.0,102410.0,0.0001422]
[1738174258756,0.40469816,102420.0,102410.0,0.0001422]
[1738174259165,0.40469816,102420.0,102410.0,0.00108001]
[1738174259380,0.40469816,102420.0,102410.0,0.0001422]
[1738174259530,0.40469816,102420.0,102410.0,0.00109178]
[1738174259745,0.40469816,102420.0,102410.0,0.00108388]
[1738174260379,0.66656943,102420.0,102410.0,0.00108388]
[1738174260586,0.59221267,102420.0,102410.0,0.00108388]
[1738174260740,0.66741267,102420.0,102410.0,0.00108388]
[1738174261393,0.39469816,102420.0,102410.0,0.00108388]
[1738174261539,0.55821267,102420.0,102410.0,0.00108388]
[1738174261739,0.390611,102410.0,102390.0,0.146498]
[1738174261949,0.390611,102410.0,102400.0,0.14648]
[1738174261950,0.14647,102410.0,102400.0,0.14648]
[1738174262165,0.29769063,102410.0,102400.0,0.00077858]
[1738174262371,0.29647,102410.0,102400.0,0.00077858]
[1738174262790,0.55822767,102410.0,102400.0,0.00077858]
[1738174263218,0.146498,102390.0,102380.0,0.24938802]
[1738174263422,0.14771886,102390.0,102380.0,0.14938802]
[1738174263640,0.14771888,102390.0,102380.0,0.10278802]
[1738174263843,0.48284516,102390.0,102380.0,0.10278802]
[1738174264063,0.55825567,102390.0,102380.0,0.10278802]
[1738174264277,0.56825567,102390.0,102380.0,0.10278802]
[1738174264718,0.56825567,102390.0,102380.0,0.10478802]
[1738174264924,0.61088202,102390.0,102380.0,0.00248194]
[1738174265140,0.146541,102360.0,102350.0,0.0001423]
[1738174265348,0.24500539,102360.0,102350.0,0.00028691]
[1738174265564,0.24378416,102360.0,102350.0,0.00028691]
[1738174265981,0.24378416,102360.0,102350.0,0.14684191]
[1738174266191,0.24378416,102360.0,102350.0,0.00028691]
[1738174266606,0.40829867,102360.0,102350.0,0.00028691]
[1738174266810,0.24378416,102360.0,102350.0,0.00028691]
[1738174267334,0.40829867,102360.0,102350.0,0.00028691]
[1738174268096,0.24378416,102360.0,102350.0,0.14684191]
[1738174268504,0.09724316,102360.0,102350.0,0.14684191]
[1738174268907,0.24378416,102360.0,102350.0,0.14684191]
[1738174269107,0.09724316,102360.0,102350.0,0.14684191]
[1738174269787,0.341912,102370.0,102350.0,0.14684191]
[1738174269992,0.341875,102380.0,102360.0,0.146541]
[1738174270124,0.16451451,102370.0,102350.0,0.46835456]
[1738174270333,0.50642151,102370.0,102350.0,0.81029356]
[1738174270548,0.50642151,102370.0,102350.0,0.61489756]
[1738174270764,0.146541,102360.0,102350.0,0.19568291]
[1738174270977,0.146541,102360.0,102350.0,0.14683691]
[1738174271861,0.79905167,102370.0,102350.0,0.34223491]
[1738174272103,0.79905167,102370.0,102350.0,0.53800356]
[1738174272303,0.146541,102360.0,102350.0,0.34260556]
[1738174272507,0.79905367,102370.0,102350.0,0.34223391]
[1738174272707,0.79905067,102370.0,102350.0,0.34260756]
[1738174272923,0.79905067,102370.0,102350.0,0.53801456]
[1738174273623,0.146541,102360.0,102350.0,0.14683691]
[1738174274115,0.31105551,102360.0,102350.0,0.00028691]
[1738174274489,0.146541,102360.0,102350.0,0.14684191]
[1738174274696,0.84789867,102370.0,102350.0,0.34261756]
[1738174274697,0.79905167,102370.0,102350.0,0.34261756]
[1738174275111,0.146539,102370.0,102360.0,0.146541]
[1738174275272,0.70176151,102380.0,102360.0,0.341923]
[1738174275472,0.24376816,102380.0,102360.0,0.63731]
[1738174275682,0.09724316,102380.0,102370.0,0.146527]
[1738174275886,0.390686,102390.0,102380.0,0.146512]
[1738174275887,0.146501,102390.0,102380.0,0.146512]
[1738174276091,0.146512,102380.0,102370.0,0.193627]
[1738174276289,0.146512,102380.0,102370.0,0.146527]
[1738174276509,0.31102651,102380.0,102370.0,0.146527]
[1738174276711,0.45711267,102380.0,102360.0,0.226636]
[1738174276910,0.79899367,102380.0,102360.0,0.422012]
[1738174277136,0.79899367,102380.0,102360.0,0.61739]
[1738174277335,0.31104151,102370.0,102360.0,0.146536]
[1738174277787,0.31104151,102370.0,102350.0,0.63037756]
[1738174277788,0.50642051,102370.0,102350.0,0.77655091]
[1738174277996,0.31105551,102360.0,102350.0,0.05910691]
[1738174278203,0.31105551,102360.0,102350.0,0.20566191]
[1738174278419,0.16451451,102360.0,102350.0,0.20566191]
[1738174278621,0.146541,102360.0,102350.0,0.40106391]
[1738174278798,0.146541,102360.0,102350.0,0.20566191]
[1738174279208,0.40829867,102360.0,102350.0,0.00028691]
[1738174279688,0.24378416,102360.0,102350.0,0.14684191]
[1738174280222,0.381007,102370.0,102350.0,0.53765091]
[1738174280430,0.039089,102370.0,102360.0,0.146541]
[1738174280640,0.146527,102370.0,102360.0,0.146541]
[1738174280845,0.341903,102370.0,102350.0,0.53902456]
[1738174281091,0.341903,102370.0,102360.0,0.146541]
[1738174281292,0.34156391,102370.0,102360.0,0.146541]
[1738174281448,0.34156391,102370.0,102350.0,0.53801256]
[1738174281647,0.74083851,102380.0,102360.0,0.537308]
[1738174281866,1.03344367,102380.0,102360.0,0.537308]
[1738174282092,0.83808067,102380.0,102360.0,0.537308]
[1738174282294,0.001,102370.0,102360.0,0.146541]
[1738174282759,0.147527,102370.0,102360.0,0.146541]
[1738174283495,0.001,102370.0,102360.0,0.146541]
[1738174283643,0.146527,102370.0,102360.0,0.146541]
[1738174284930,0.341899,102370.0,102350.0,0.68309156]
[1738174285132,0.341899,102370.0,102360.0,0.146541]
[1738174285332,0.63452016,102370.0,102350.0,0.87849056]
[1738174285508,0.43914216,102370.0,102360.0,0.146541]
[1738174285712,0.576324,102380.0,102360.0,0.34192]
[1738174285967,0.146527,102370.0,102360.0,0.34192]
[1738174286139,0.146527,102370.0,102360.0,0.146541]
[1738174286731,0.146541,102360.0,102350.0,0.04638691]
[1738174286931,0.35374775,102360.0,102350.0,0.00128691]
[1738174287184,0.35374775,102360.0,102350.0,0.00028691]
[1738174287804,0.24378416,102360.0,102350.0,0.14684191]
[1738174288224,0.24378416,102360.0,102350.0,0.00028691]
[1738174288423,0.50374775,102360.0,102350.0,0.00028691]
[1738174288643,0.61371134,102360.0,102350.0,0.00028691]
[1738174288848,0.64671134,102360.0,102350.0,0.00028691]
[1738174289806,0.52674775,102360.0,102350.0,0.00028691]
[1738174290040,0.51374775,102360.0,102350.0,0.00028691]
[1738174290251,0.50374775,102360.0,102350.0,0.00028691]
[1738174290755,0.62571134,102360.0,102350.0,0.00028691]
[1738174290891,0.51574775,102360.0,102350.0,0.00028691]
[1738174291095,0.62571134,102360.0,102350.0,0.00028691]
[1738174292230,0.7230681,102360.0,102350.0,0.00028691]
[1738174292484,0.62571134,102360.0,102350.0,0.00028691]
[1738174292705,0.73953769,102360.0,102350.0,0.00028691]
[1738174293612,0.76281134,102360.0,102350.0,9.1e-07]
[1738174294260,0.76081134,102360.0,102350.0,9.1e-07]
[1738174294470,0.76481134,102360.0,102350.0,9.1e-07]
[1738174294684,0.8751845,102360.0,102350.0,9.1e-07]
[1738174295119,0.8711845,102360.0,102350.0,9.1e-07]
[1738174295332,0.9349377,102360.0,102350.0,0.00100091]
[1738174296277,0.319555,102350.0,102340.0,7.8e-07]
[1738174296472,0.58194833,102350.0,102340.0,0.00014555]
[1738174297312,0.58194833,102350.0,102340.0,0.00114555]
[1738174297509,0.58994833,102350.0,102340.0,0.00114555]
[1738174298625,0.91244833,102350.0,102340.0,0.00114555]
[1738174298834,1.01880509,102350.0,102340.0,0.00100055]
[1738174299046,0.92144833,102350.0,102340.0,0.00100055]
[1738174300278,1.00084833,102350.0,102340.0,0.00100055]
[1738174300940,1.00084833,102350.0,102340.0,5.5e-07]
[1738174301721,1.02877004,102350.0,102340.0,5.5e-07]
[1738174301926,0.33921035,102330.0,102320.0,0.0001423]
[1738174302122,0.76675385,102330.0,102320.0,0.0001423]
[1738174302334,0.60160368,102330.0,102320.0,0.0001423]
[1738174303156,0.76675385,102330.0,102320.0,0.0001423]
[1738174303410,0.60160368,102330.0,102320.0,0.0001423]